bitfinex/quotes_ETHUSD_20250217
["timestamp","ask_amount","ask_price","bid_price","bid_amount"]
[1739811014785,0.8207,2737.8,2737.2,0.365339]
[1739811015005,4.47332,2737.8,2737.2,0.365339]
[1739811015163,3.65301,2737.5,2736.7,4.4209]
[1739811015488,3.65301,2737.5,2736.8,3.6539]
[1739811015674,0.04566393,2737.4,2736.4,0.7604]
[1739811015872,3.65385,2736.9,2736.4,0.7604]
[1739811016079,3.65385,2736.9,2736.4,0.51949457]
[1739811016652,3.55,2736.8,2735.6,0.7604]
[1739811016852,3.65465,2736.3,2735.6,0.7604]
[1739811017052,3.65465,2736.3,2735.1,1.49335402]
[1739811017053,3.65504,2736.0,2735.1,1.49335402]
[1739811017288,3.65504,2736.0,2735.2,3.65592]
[1739811017487,7.47301,2736.2,2735.4,3.65575]
[1739811017672,3.65492,2736.1,2735.4,4.386917]
[1739811017988,9.54580424,2736.6,2735.6,3.65539]
[1739811018150,4.46936,2737.0,2736.2,0.756]
[1739811018349,3.65353,2737.1,2736.4,3.65443]
[1739811018554,0.55,2737.2,2736.4,3.65435]
[1739811018785,0.55,2737.2,2736.4,0.441035]
[1739811019005,3.65431,2736.5,2735.8,0.756]
[1739811019154,3.65419,2736.6,2735.8,0.756]
[1739811019499,3.65425,2736.6,2735.8,4.41114]
[1739811019706,4.4698,2736.7,2735.8,4.41114]
[1739811019707,3.65431,2736.5,2735.8,4.41114]
[1739811019923,3.65444,2736.4,2735.9,0.441114]
[1739811020056,4.47035,2736.3,2735.4,4.386827]
[1739811020407,7.20434,2736.5,2735.6,3.65538]
[1739811020553,3.6546,2736.3,2735.5,3.65555]
[1739811020758,3.55,2736.5,2735.6,4.4596277]
[1739811020970,0.8157,2736.6,2736.0,3.65496]
[1739811021196,0.8157,2736.6,2735.9,0.796]
[1739811021197,4.46988,2736.6,2735.9,4.45109]
[1739811021358,4.46988,2736.6,2735.9,0.796]
[1739811021558,3.8157,2736.6,2735.9,0.796]
[1739811021783,3.65434,2736.5,2735.9,0.796]
[1739811021973,3.65434,2736.5,2735.9,1.241115]
[1739811022190,3.0,2736.6,2736.0,0.03654516]
[1739811022395,3.65356,2737.1,2736.4,3.65435]
[1739811022719,7.30716,2737.1,2736.4,3.65434]
[1739811022925,0.7665,2737.2,2736.6,3.65407]
[1739811023418,3.0,2737.0,2736.5,1.19797273]
[1739811023623,6.65367,2737.0,2736.5,1.161434]
[1739811023819,3.65384,2736.9,2736.5,1.161434]
[1739811024022,0.55,2736.9,2736.0,4.45089]
[1739811024222,0.55,2736.9,2736.0,0.796]
[1739811024421,3.65446,2736.4,2735.5,0.796]
[1739811024626,3.0,2736.4,2735.7,3.65537]
[1739811024920,3.6546,2736.3,2735.5,4.45156]
[1739811025124,0.55,2736.5,2736.0,0.025]
[1739811025125,6.65495,2736.1,2736.0,0.025]
[1739811025498,7.41515,2736.1,2736.0,0.025]
[1739811025696,7.96515,2736.1,2736.0,0.025]
[1739811025902,7.41515,2736.1,2736.0,0.025]
[1739811026283,9.072136,2736.1,2736.0,0.025]
[1739811027054,3.0,2736.1,2736.0,0.025]
[1739811027190,0.7602,2736.5,2736.0,0.025]
[1739811027390,3.0,2736.4,2736.0,0.025]
[1739811027791,3.65457,2736.3,2736.0,0.025]
[1739811028006,3.0,2736.4,2736.0,0.025]
[1739811028213,3.0,2736.6,2736.0,0.025]
[1739811028417,0.55,2736.7,2736.0,0.025]
[1739811028736,3.65453,2736.4,2736.0,0.025]
[1739811028943,7.30908,2736.4,2736.0,0.025]
[1739811029240,3.65453,2736.4,2736.0,0.025]
[1739811029391,1.22143283,2737.2,2736.0,0.06154663]
[1739811029598,4.41396,2737.5,2736.6,3.65408]
[1739811029799,4.41396,2737.5,2736.9,3.65368]
[1739811030115,3.65296,2737.5,2736.8,0.7809]
[1739811030321,3.65319,2737.4,2736.8,0.7809]
[1739811030647,3.04566675,2737.5,2736.8,0.7809]
[1739811030948,3.65426,2736.6,2736.1,0.8194]
[1739811031157,3.65441,2736.5,2736.1,0.8194]
[1739811031365,0.55,2736.5,2735.8,0.8194]
[1739811031499,7.20483,2736.1,2735.3,0.8194]
[1739811031700,7.25052153,2736.1,2735.3,0.8194]
[1739811031899,8.81563411,2736.1,2735.3,0.8194]
[1739811032104,8.76994258,2736.1,2735.3,0.8194]
[1739811032806,8.76994258,2736.1,2735.0,0.8174]
[1739811033149,9.53724258,2736.1,2735.0,0.8174]
[1739811034847,3.65661,2734.8,2734.1,0.77]
[1739811035065,3.65635,2735.0,2734.1,0.77]
[1739811035343,3.65724,2734.3,2734.2,0.07286173]
[1739811035843,3.65739,2734.2,2733.7,0.77]
[1739811036048,3.65763,2734.1,2733.7,0.77]
[1739811036265,3.65724,2734.3,2733.8,0.07326039]
[1739811036812,3.65759,2734.1,2733.8,0.07326039]
[1739811037149,3.65759,2734.1,2733.4,0.77]
[1739811037349,4.46178,2734.3,2733.4,0.77]
[1739811037667,3.65741,2734.2,2733.5,0.51641647]
[1739811037869,3.65752,2734.1,2733.5,0.51641647]
[1739811038196,3.65766,2734.0,2733.5,0.07355947]
[1739811039178,0.8045,2734.6,2733.5,0.07355947]
[1739811039179,3.6574,2734.2,2733.5,0.07355947]
[1739811039378,3.65754,2734.1,2733.5,0.07355947]
[1739811039608,3.6574,2734.2,2733.5,0.07355947]
[1739811039746,3.65716,2734.4,2733.5,3.76832635]
[1739811039946,3.65716,2734.4,2733.5,0.56396899]
[1739811040285,4.20697,2734.5,2733.5,0.56396814]
[1739811040469,0.55,2734.5,2733.5,0.52739211]
[1739811040677,3.65738,2734.2,2733.5,0.52739211]
[1739811040999,3.65753,2734.1,2733.5,0.52739211]
[1739811041189,3.65733,2734.3,2733.5,0.07355947]
[1739811041348,3.65745,2734.2,2733.5,0.07355947]
[1739811041543,3.65751,2734.1,2733.5,0.07355947]
[1739811041784,0.55,2734.5,2733.5,0.07355947]
[1739811041785,3.65801,2733.8,2733.5,0.07355947]
[1739811042082,3.65772,2734.0,2733.5,0.07355947]
[1739811042251,3.65798,2733.8,2733.5,0.07355947]
[1739811042446,3.65772,2734.0,2733.5,0.07355947]
[1739811042659,0.55,2734.1,2733.5,0.07355947]
[1739811042983,3.6576,2734.1,2733.5,0.07355947]
[1739811043479,3.65732,2734.3,2733.5,0.07355947]
[1739811043687,3.65751,2734.1,2733.5,0.07355947]
[1739811044300,4.20817,2733.6,2733.5,0.07355947]
[1739811044663,3.6586,2733.3,2732.6,0.7733]
[1739811044869,3.6586,2733.3,2732.7,0.07281603]
[1739811045177,3.65888,2733.1,2732.7,0.07281603]
[1739811045582,3.65862,2733.3,2732.7,0.07281603]
[1739811047428,0.731698,2733.3,2732.7,0.07281603]
[1739811047630,3.65925,2732.8,2732.7,0.07281603]
[1739811047835,3.65925,2732.8,2732.3,0.7646]
[1739811047836,3.65942,2732.7,2732.3,0.7646]
[1739811047967,3.65891,2733.1,2732.4,0.03659614]
[1739811048172,5.32,2733.3,2732.4,0.10994733]
[1739811048406,0.7554,2733.6,2732.4,0.07335402]
[1739811048720,3.0,2733.3,2732.4,0.07335402]
[1739811048923,3.0,2733.3,2731.9,0.772]
[1739811048924,3.65978,2732.4,2731.9,0.772]
[1739811049213,3.65978,2732.4,2732.0,0.0737564]
[1739811049879,3.65952,2732.6,2732.0,0.0737564]
[1739811050202,0.55,2732.7,2732.1,3.66017]
[1739811050412,7.31814,2733.0,2732.1,4.48036651]
[1739811050715,3.65879,2733.2,2732.4,0.8115]
[1739811050877,3.65885,2733.1,2732.5,0.07325743]
[1739811051083,0.64511364,2733.5,2732.7,3.65931]
[1739811051283,0.64511364,2733.5,2732.8,0.1095465]
[1739811051741,3.65871,2733.2,2732.8,0.07295813]
[1739811051878,3.65855,2733.4,2732.6,3.65942]
[1739811052078,6.1491,2733.7,2732.7,0.07305789]
[1739811052330,5.32,2733.7,2733.0,4.48029]
[1739811052641,5.32,2733.7,2733.1,0.0726589]
[1739811052951,0.7992,2734.3,2733.4,3.65833]
[1739811053100,4.4561,2734.6,2733.5,0.81547862]
[1739811053300,3.65726,2734.3,2733.6,0.07216033]
[1739811053489,3.6572,2734.4,2733.6,3.76688657]
[1739811054052,4.45604,2734.6,2733.7,3.65793]
[1739811054330,3.65707,2734.5,2733.8,0.07196095]
[1739811054539,0.977627,2734.5,2733.5,0.7789]
[1739811054734,3.65731,2734.3,2733.6,0.07216033]
[1739811054883,0.55,2734.4,2733.7,0.03657624]
[1739811055084,0.55,2734.4,2733.8,0.07196095]
[1739811055296,3.55,2734.4,2733.8,0.07196095]
[1739811055539,3.55,2734.4,2733.7,7.35254624]
[1739811055716,3.0,2734.4,2733.8,0.80694989]
[1739811055931,3.65733,2734.3,2733.8,0.07196095]
[1739811056255,3.65733,2734.3,2733.5,0.7789]
[1739811056432,3.65733,2734.3,2733.9,0.07186128]
[1739811056595,3.65733,2734.3,2733.5,4.43714]
[1739811057146,3.65733,2734.3,2733.6,0.07216033]
[1739811057626,6.65712,2734.4,2733.6,3.73026033]
[1739811057830,6.65712,2734.4,2733.7,0.45091603]
[1739811058029,3.65771,2734.0,2733.6,0.07216033]
[1739811058205,3.65771,2734.0,2733.8,0.07159187]
[1739811058401,0.04572167,2733.9,2733.7,0.07169792]
[1739811058723,3.65817,2733.7,2733.2,0.8195]
[1739811059236,0.420635,2734.9,2733.3,0.03658268]
[1739811059417,1.3107,2734.6,2733.7,0.7705]
[1739811059727,3.65716,2734.4,2733.7,4.42854]
[1739811059937,6.65716,2734.4,2733.7,0.7705]
[1739811060090,3.65739,2734.2,2733.7,0.7705]
[1739811060293,3.65716,2734.4,2733.7,4.42849]
[1739811060502,3.0,2734.4,2733.7,0.7705]
[1739811060729,3.95724,2734.3,2733.7,0.7705]
[1739811060931,0.04572019,2734.2,2733.1,3.65875]
[1739811061116,3.65764,2734.0,2733.2,4.41899]
[1739811061322,6.65764,2734.0,2733.2,4.41899]
[1739811061520,6.65764,2734.0,2733.2,0.7603]
[1739811061701,3.65791,2733.8,2733.2,0.7603]
[1739811062035,5.350186,2733.8,2732.8,0.7728]
[1739811062206,3.65905,2733.0,2732.3,3.65991]
[1739811062531,4.20866,2733.3,2732.6,3.65949]
[1739811062828,3.65819,2733.6,2732.9,3.65903]
[1739811063139,0.55,2733.5,2732.7,0.7728]
[1739811063462,3.6591,2733.0,2732.2,4.43277]
[1739811063667,3.6591,2733.0,2732.3,3.65988]
[1739811063954,3.65919,2732.9,2732.3,0.07335519]
[1739811064513,0.55,2733.0,2732.3,0.10994733]
[1739811064751,3.65864,2733.3,2732.3,0.10994733]
[1739811065056,3.0,2733.2,2732.5,3.65963]
[1739811065353,3.65886,2733.1,2732.6,0.07305585]
[1739811065649,3.65886,2733.1,2732.4,3.65976]
[1739811065826,3.65842,2733.5,2732.7,3.73231608]
[1739811066028,3.65859,2733.3,2732.5,3.65954]
[1739811066234,7.31725,2733.3,2732.8,0.07293272]
[1739811066450,3.65859,2733.3,2732.5,3.65964]
[1739811066666,0.976542,2733.5,2732.9,0.07283297]
[1739811066667,3.55,2733.4,2732.9,0.07283297]
[1739811066953,6.657,2733.7,2733.0,0.8308]
[1739811066954,8.97804,2733.7,2733.0,0.8308]
[1739811067253,9.875844,2733.7,2733.1,0.07263349]
[1739811067413,13.533964,2733.7,2733.1,0.07263349]
[1739811067756,9.875844,2733.7,2733.1,0.07263349]
[1739811068050,6.217804,2733.7,2733.1,0.07263349]
[1739811068347,3.65839,2733.5,2733.1,0.07263349]
[1739811068754,3.65868,2733.3,2733.1,0.07263349]
[1739811069046,5.0118194,2733.5,2733.1,0.07263349]
[1739811069266,3.65844,2733.4,2733.1,0.07263349]
[1739811069424,3.65864,2733.3,2733.1,0.07263349]
[1739811069759,1.3534294,2733.5,2733.1,0.07263349]
[1739811069935,1.3534294,2733.5,2732.7,0.8308]
[1739811069936,3.65907,2733.0,2732.7,0.8308]
[1739811070137,3.65899,2733.0,2732.8,0.07303448]
[1739811070453,0.55,2733.2,2732.8,0.07303448]
[1739811070614,4.20871,2733.2,2732.8,0.07303448]
[1739811071018,3.65891,2733.1,2732.8,0.07303448]
[1739811071315,3.65898,2733.0,2732.8,0.07303448]
[1739811071550,3.65827,2733.6,2732.9,3.65909]
[1739811071746,3.65827,2733.6,2732.9,3.65901]
[1739811071962,3.65827,2733.6,2733.0,0.07283498]
[1739811072123,3.65832,2733.5,2733.0,0.07283498]
[1739811072325,3.55,2733.7,2733.1,3.65881]
[1739811072526,3.65772,2734.0,2733.3,0.7863]
[1739811072745,3.65784,2733.9,2733.3,4.44481]
[1739811072933,4.42122,2734.1,2733.4,3.73084974]
[1739811073139,3.65732,2734.3,2733.5,3.65831]
[1739811073462,3.65778,2733.9,2733.6,0.07230033]
[1739811073671,3.6579,2733.9,2733.3,0.7863]
[1739811073968,0.55,2733.7,2733.3,0.7863]
[1739811074176,4.20816,2733.7,2733.3,0.7863]
[1739811074319,0.55,2733.7,2733.3,0.7863]
[1739811074521,0.7637,2734.4,2733.3,4.44477]
[1739811074522,3.65767,2734.0,2733.3,4.44477]
[1739811074836,3.65731,2734.3,2733.4,0.0365809]
[1739811075190,3.65752,2734.1,2733.5,3.65831]
[1739811075339,3.65731,2734.3,2733.5,3.65822]
[1739811075543,4.20703,2734.5,2733.3,0.7863]
[1739811075544,3.65764,2734.1,2733.3,4.44478]
[1739811075872,3.70338168,2734.0,2733.3,0.7863]
[1739811076076,3.70338168,2734.0,2733.3,4.44477]
[1739811076077,3.65766,2734.0,2733.3,4.44477]
[1739811076425,3.65766,2734.0,2733.4,3.65843]
[1739811076973,0.55,2734.1,2733.5,3.65819]
[1739811077184,4.20751,2734.1,2733.5,3.65819]
[1739811077374,0.55,2734.1,2733.5,3.65819]
[1739811077583,0.55,2734.1,2733.4,4.46876]
[1739811077584,3.65772,2734.0,2733.4,0.81032]
[1739811077867,0.55,2734.2,2733.3,4.44476]
[1739811078171,0.55,2734.2,2733.3,0.7863]
[1739811078172,3.65792,2733.8,2733.3,0.7863]
[1739811078499,3.65787,2733.9,2733.3,0.7863]
[1739811078775,3.65812,2733.7,2733.3,0.7863]
[1739811079073,7.20788,2733.9,2733.3,0.7863]
[1739811079277,7.48045,2734.3,2733.7,3.65804]
[1739811079459,1.6731601,2734.2,2733.5,3.65828]
[1739811079624,3.65763,2734.1,2733.5,3.65828]
[1739811079825,3.65771,2734.0,2733.6,0.07214121]
[1739811080035,3.65771,2734.0,2733.4,3.65843]
[1739811080269,3.65771,2734.0,2733.7,0.07204152]
[1739811080436,3.65771,2734.0,2733.4,3.65843]
[1739811080631,3.65771,2734.0,2733.8,0.07181455]
[1739811080850,3.65771,2734.0,2733.3,0.7863]
[1739811080851,0.55,2734.2,2733.7,3.65797]
[1739811081475,5.32,2734.4,2734.0,3.65753]
[1739811081680,4.42216,2735.1,2734.0,0.03657201]
[1739811081826,0.7659,2735.1,2734.1,0.876271]
[1739811082025,3.65618,2735.1,2734.3,3.65724]
[1739811082231,3.65618,2735.1,2734.5,3.65694]
[1739811082461,5.32,2735.2,2734.4,0.8301]
[1739811082676,3.65634,2735.0,2734.6,0.07082964]
[1739811083004,5.32,2735.2,2734.7,0.07073003]
[1739811083211,6.65577,2735.4,2734.7,0.07073003]
[1739811083368,5.32,2735.6,2735.0,3.65622]
[1739811083568,3.0,2735.6,2734.8,4.43289]
[1739811083769,3.65603,2735.2,2735.1,0.07022032]
[1739811084304,3.65591,2735.3,2735.1,0.07022032]
[1739811084455,3.65591,2735.3,2734.8,0.7764]
[1739811084654,3.65621,2735.1,2734.8,0.7764]
[1739811084877,3.65621,2735.1,2734.9,0.07033684]
[1739811085080,0.55,2735.2,2734.9,0.07033684]
[1739811085472,3.65578,2735.4,2734.8,4.43296]
[1739811085674,3.65557,2735.6,2734.9,0.443296]
[1739811086007,7.31147,2735.5,2734.9,0.07033684]
[1739811086221,5.32,2735.7,2734.9,0.07033684]
[1739811086222,3.55,2735.6,2734.9,0.07033684]
[1739811086522,3.55,2735.6,2733.2,5.24]
[1739811086523,9.07536101,2735.0,2733.7,0.7625]
[1739811086815,9.07536101,2735.0,2733.8,3.65781]
[1739811086816,3.65714,2734.4,2733.8,3.65781]
[1739811087319,3.65714,2734.4,2733.9,0.06593834]
[1739811087516,3.65705,2734.5,2733.9,0.06593834]
[1739811087677,3.65711,2734.4,2733.9,0.06593834]
[1739811088495,3.6569,2734.6,2734.0,3.6576]
[1739811088711,3.6569,2734.6,2733.9,3.72368834]
[1739811088910,1.2731601,2734.9,2733.7,0.7625]
[1739811088911,3.65727,2734.3,2734.1,0.06582459]
[1739811089109,3.65751,2734.1,2734.0,0.06592425]
[1739811089260,3.65751,2734.1,2733.7,0.7625]
[1739811089460,0.55,2734.3,2733.7,0.7625]
[1739811089761,3.65757,2734.1,2733.7,0.7625]
[1739811090410,4.20733,2734.3,2733.7,0.7625]
[1739811090710,3.0,2734.4,2733.7,1.204574]
[1739811090918,3.6567,2734.8,2734.1,3.6575]
[1739811091213,6.5931601,2734.9,2733.8,3.65791]
[1739811091411,3.65705,2734.5,2733.8,0.4862484]
[1739811091722,3.76930601,2734.8,2734.1,3.6575]
[1739811091723,3.65679,2734.7,2734.1,3.6575]
[1739811091857,3.65679,2734.7,2733.8,0.52281952]
[1739811091858,5.32,2734.9,2734.4,3.657]
[1739811092055,3.65678,2734.7,2734.2,0.7776]
[1739811092331,3.0,2735.0,2734.4,3.65699]
[1739811092605,3.6564,2735.0,2734.3,3.65716]
[1739811092760,3.65646,2734.9,2734.3,3.65716]
[1739811092962,3.6564,2735.0,2734.4,4.100566]
[1739811093297,3.65638,2735.0,2734.4,0.443476]
[1739811093472,3.65644,2734.9,2734.4,0.443476]
[1739811093681,3.65659,2734.8,2734.4,0.443476]
[1739811093878,3.65638,2735.0,2734.4,0.443476]
[1739811094219,8.97585,2735.4,2734.7,3.65659]
[1739811094360,3.65585,2735.4,2734.8,3.65646]
[1739811094555,3.65585,2735.4,2734.9,0.06502121]
[1739811094817,3.65585,2735.4,2734.7,7.3132]
[1739811094965,3.65585,2735.4,2734.8,3.65656]
[1739811095166,4.43036,2735.8,2734.9,0.79633621]
[1739811095405,3.65551,2735.6,2735.2,0.7952]
[1739811096008,0.7751,2736.1,2735.3,0.06462286]
[1739811096208,6.4241,2736.4,2735.3,0.10117891]
[1739811096410,3.65504,2736.0,2735.4,3.65569]
[1739811096565,3.65504,2736.0,2735.4,4.47283829]
[1739811096765,3.65504,2736.0,2735.4,4.53711751]
[1739811096993,3.65479,2736.2,2735.5,0.03655177]
[1739811097210,3.65485,2736.1,2735.5,3.65563]
[1739811097451,3.65485,2736.1,2735.6,0.0640801]
[1739811097649,3.65479,2736.2,2735.6,4.38604016]
[1739811098113,0.74442613,2736.7,2735.7,0.7625]
[1739811098324,3.65371,2737.0,2736.1,0.7625]
[1739811098536,8.97343,2737.2,2736.4,3.6544]
[1739811098849,3.0,2736.9,2736.5,0.06291833]
[1739811099053,3.65364,2737.0,2736.3,3.65448]
[1739811099200,3.65365,2737.0,2736.6,0.06281885]
[1739811099397,5.32,2737.2,2736.7,3.65399]
[1739811099651,5.32,2737.2,2736.8,0.82511991]
[1739811099799,5.32,2737.2,2736.8,4.47900991]
[1739811099999,5.32,2737.2,2736.8,0.82511991]
[1739811101664,3.65304,2737.5,2736.9,3.65376]
[1739811101837,4.383554,2737.5,2736.9,0.06252045]
[1739811102286,3.6532,2737.4,2736.9,0.06252045]
[1739811102434,3.65323,2737.3,2736.9,0.06252045]
[1739811103183,4.383614,2737.5,2736.9,0.06252045]
[1739811103389,8.036714,2737.5,2736.9,0.06252045]
[1739811103686,3.0,2737.6,2737.0,3.71566758]
[1739811103885,3.0,2737.6,2737.1,0.03653071]
[1739811104090,3.0,2737.6,2737.1,3.75200884]
[1739811104451,3.0,2737.6,2737.1,0.09853884]
[1739811104651,6.65291,2737.6,2737.1,0.06200813]
[1739811104954,3.65306,2737.5,2737.1,0.06200813]
[1739811105150,3.65311,2737.4,2737.1,0.06200813]
[1739811105473,3.65311,2737.4,2737.2,0.06190869]
[1739811105474,3.6533,2737.3,2737.2,0.06190869]
[1739811105784,3.6533,2737.3,2736.8,0.7625]
[1739811105987,3.6533,2737.3,2737.2,0.06190869]
[1739811106292,4.683644,2737.5,2737.2,0.06190869]
[1739811106293,3.65311,2737.4,2737.2,0.06190869]
[1739811106489,3.65311,2737.4,2736.8,4.41633]
[1739811106689,3.65297,2737.5,2737.3,0.06180926]
[1739811106892,6.6529,2737.6,2736.9,3.6537]
[1739811107053,6.6529,2737.6,2737.4,0.06170984]
[1739811107418,6.6529,2737.6,2736.8,1.55809831]
[1739811107419,3.65325,2737.3,2736.8,4.41639]
[1739811107679,3.65325,2737.3,2736.8,1.204139]
[1739811107833,3.65325,2737.3,2736.9,0.06157053]
[1739811108035,0.73388247,2738.3,2737.0,0.7553]
[1739811108291,0.8022,2738.4,2737.1,0.7553]
[1739811108441,3.65243,2738.0,2737.3,3.65316]
[1739811108789,3.65216,2738.1,2737.3,3.65315]
[1739811108952,3.65216,2738.1,2737.1,4.40871]
[1739811108953,3.65277,2737.7,2737.4,0.06102904]
[1739811109155,3.65296,2737.5,2737.4,0.06102904]
[1739811109357,3.65296,2737.5,2737.1,0.7553]
[1739811109864,3.65296,2737.5,2737.2,0.061095]
[1739811110069,3.65323,2737.3,2737.2,0.061095]
[1739811110429,3.65263,2737.8,2737.2,0.061095]
[1739811110634,3.65263,2737.8,2737.3,3.65322]
[1739811110892,3.65246,2737.9,2737.4,3.65303]
[1739811111054,0.365243,2738.0,2737.5,3.65289]
[1739811111055,3.65237,2738.0,2737.5,3.65289]
[1739811111389,3.0,2737.9,2737.5,0.06085685]
[1739811111596,3.65221,2738.1,2737.6,3.65272]
[1739811111889,0.8203,2738.4,2737.8,3.65253]
[1739811111890,7.30389,2738.3,2737.8,3.65253]
[1739811112185,3.6522,2738.1,2737.7,0.06065804]
[1739811112348,3.6522,2738.1,2737.9,0.06045926]
[1739811112586,3.6522,2738.1,2737.4,4.42732]
[1739811112587,3.65243,2737.9,2737.8,0.06055864]
[1739811112777,3.65231,2738.0,2737.4,0.7743]
[1739811112977,1.030418,2738.1,2737.5,3.65286]
[1739811113236,3.65224,2738.1,2737.6,3.65279]
[1739811113407,3.0,2738.2,2737.7,3.65262]
[1739811113620,0.005,2738.4,2737.8,3.65247]
[1739811113835,0.005,2738.4,2737.9,0.7684]
[1739811114039,3.005,2738.4,2737.9,0.7684]
[1739811114211,4.20198,2738.3,2737.9,0.7684]
[1739811114549,3.65213,2738.2,2737.9,0.7684]
[1739811114726,7.30426,2738.2,2737.9,0.7684]
[1739811114913,3.65213,2738.2,2737.9,0.7684]
[1739811115451,3.55,2738.3,2737.5,4.47374]
[1739811115452,3.6523,2738.0,2737.5,4.47374]
[1739811115805,3.65277,2737.7,2737.2,0.8208]
[1739811116148,0.55,2737.9,2737.2,0.8208]
[1739811116450,3.65264,2737.8,2737.2,4.47413]
[1739811116596,3.65274,2737.7,2737.2,4.47415]
[1739811116801,3.55,2737.9,2737.4,3.65308]
[1739811116996,3.0,2737.9,2737.5,3.65295]
[1739811117202,3.65239,2738.0,2737.4,3.65308]
[1739811117450,3.6523,2738.1,2737.4,3.65308]
[1739811117745,0.55,2738.0,2737.2,4.47405]
[1739811117913,3.65264,2737.8,2737.2,4.47405]
[1739811118453,0.55,2738.0,2737.2,0.8208]
[1739811118454,3.65304,2737.5,2737.2,0.8208]
[1739811119554,3.65277,2737.7,2737.2,0.8208]
[1739811119734,3.65243,2737.9,2737.2,4.4741]
[1739811119901,7.30453,2738.1,2737.5,3.65284]
[1739811120101,3.65231,2738.0,2737.4,3.6531]
[1739811120400,3.65266,2737.8,2737.2,4.47406]
[1739811120601,3.0,2738.2,2737.3,0.03652904]
[1739811120602,7.75446101,2738.2,2737.3,0.03652904]
[1739811120842,3.65232,2738.0,2737.5,3.65287]
[1739811121214,6.65204,2738.2,2737.6,3.65283]
[1739811121414,8.97203,2738.3,2737.6,3.65283]
[1739811121615,7.322502,2738.4,2737.8,3.65247]
[1739811121947,7.322502,2738.4,2737.7,0.7973]
[1739811121948,3.65223,2738.1,2737.7,0.7973]
[1739811122171,3.65237,2738.0,2737.7,0.7973]
[1739811122461,0.005,2738.4,2737.3,0.7973]
[1739811122462,3.65283,2737.6,2737.3,0.7973]
[1739811122648,3.65283,2737.6,2736.7,0.7973]
[1739811122649,3.65322,2737.4,2736.7,0.7973]
[1739811122850,0.7679,2737.5,2736.9,3.65369]
[1739811122851,3.65309,2737.5,2736.9,3.65369]
[1739811123147,3.65309,2737.5,2736.9,4.464179]
[1739811123559,3.0,2737.6,2736.9,4.464179]
[1739811123721,3.65258,2737.8,2737.3,3.65315]
[1739811123903,0.7679,2738.1,2737.3,3.65315]
[1739811124132,3.65271,2737.7,2737.1,3.65337]
[1739811124331,7.42016,2738.1,2737.2,0.445067]
[1739811124532,7.42016,2738.1,2737.5,3.65288]
[1739811124533,3.65217,2738.1,2737.5,3.65288]
[1739811124732,0.005,2738.4,2737.5,3.65288]
[1739811124733,3.65214,2738.2,2737.5,3.65288]
[1739811124953,3.65232,2738.0,2737.3,7.30626]
[1739811125250,3.65292,2737.6,2737.2,0.8006]
[1739811125458,3.65304,2737.5,2737.2,0.8006]
[1739811125658,3.65278,2737.7,2737.2,4.45384]
[1739811126311,3.55,2737.8,2737.3,3.65323]
[1739811126509,3.0,2737.8,2737.2,0.8006]
[1739811126738,3.65279,2737.7,2737.2,0.8006]
[1739811126936,3.65278,2737.7,2737.2,0.8006]
[1739811127305,0.365278,2737.7,2737.2,0.8006]
[1739811127565,3.55,2738.0,2736.9,4.42837]
[1739811127566,7.30637,2737.4,2736.9,4.42837]
[1739811127872,3.65318,2737.4,2736.9,0.7747]
[1739811128183,0.55,2737.4,2736.9,0.7747]
[1739811128317,3.65363,2737.0,2736.9,0.7747]
[1739811128615,3.6534,2737.2,2736.9,0.7747]
[1739811129211,5.32,2737.6,2737.0,3.65356]
[1739811129465,3.65284,2737.6,2737.1,0.06107107]
[1739811129769,0.55,2737.7,2737.1,0.06107107]
[1739811129965,3.65325,2737.3,2737.1,0.06107107]
[1739811130150,3.65317,2737.4,2736.9,0.7747]
[1739811130151,3.65317,2737.4,2736.9,4.4284]
[1739811130466,3.65296,2737.5,2737.0,3.65362]
[1739811130684,3.65247,2737.9,2737.0,0.06117052]
[1739811130887,0.005,2738.4,2737.9,3.65233]
[1739811131178,3.6519,2738.3,2738.0,0.7994]
[1739811131472,3.6519,2738.3,2738.1,0.06007702]
[1739811131674,3.65203,2738.2,2738.1,0.06007702]
[1739811131818,0.005,2738.4,2738.1,0.06007702]
[1739811132020,0.005,2738.4,2738.1,3.71222702]
[1739811132237,0.005,2738.4,2738.1,0.06007702]
[1739811132457,0.005,2738.4,2738.1,3.71219702]
[1739811132680,0.005,2738.4,2738.3,3.6519]
[1739811132836,0.005,2738.4,2738.3,4.4513]
[1739811133181,0.005,2738.4,2738.3,4.54768952]
[1739811133832,0.005,2738.4,2738.3,7.54768952]
[1739811134035,11.85778,2739.9,2739.2,4.45006]
[1739811134240,3.64978,2739.9,2739.3,3.68705139]
[1739811134440,3.6493,2740.3,2739.4,3.65031]
[1739811134763,0.1508012,2740.4,2739.5,0.05837036]
[1739811134764,3.64951,2740.1,2739.5,0.05837036]
[1739811134937,3.64925,2740.3,2739.5,3.70856036]
[1739811135161,3.64925,2740.3,2739.6,0.37085604]
[1739811135399,3.7999212,2740.4,2739.7,0.7875]
[1739811135565,0.1508012,2740.4,2739.7,0.7875]
[1739811135760,0.1508012,2740.4,2739.8,0.05807259]
[1739811136395,3.1508012,2740.4,2739.8,0.05807259]
[1739811136604,3.64927,2740.3,2739.8,0.05807259]
[1739811136900,3.64927,2740.3,2739.7,0.7875]
[1739811137100,3.64927,2740.3,2739.9,0.05797335]
[1739811137403,3.64927,2740.3,2739.7,1.2683546]
[1739811137404,3.64927,2740.3,2739.8,0.05807259]
[1739811137601,3.64927,2740.3,2740.0,0.05787412]